fUST/lending_fUST_20251115
["ID","MTS","AMOUNT","RATE_DAILY","PERIOD"]
[393995479,1763169046996,-164.2237678,0.00045076,30]
[393995480,1763169047006,-164.2237678,0.00045076,30]
[393995481,1763169047015,-191.2434578,0.00045076,30]
[393995482,1763169047024,-191.2434578,0.00045076,30]
[393995483,1763169047033,-191.2434578,0.00045076,30]
[393995484,1763169047042,-172.39,0.00045094,120]
[393995485,1763169047051,-172.39,0.00045194,120]
[393995486,1763169047060,-3031.16,0.000452,14]
[393995487,1763169047069,-172.39,0.00045294,120]
[393995488,1763169047078,-333.941597,0.00045348,120]
[393995489,1763169047087,-172.39,0.00045394,120]
[393995490,1763169047096,-390.62,0.00045479,15]
[393995491,1763169047105,-172.39,0.00045494,120]
[393995492,1763169047114,-500.0,0.000455,120]
[393995493,1763169047123,-172.39,0.00045594,120]
[393995494,1763169047132,-172.39,0.00045694,120]
[393995495,1763169047141,-790.4219608,0.00045757,30]
[393995496,1763169047150,-172.39,0.00045794,120]
[393995497,1763169047159,-172.39,0.00045894,120]
[393995498,1763169047168,-593.4565077,0.00045894,30]
[393995499,1763169047177,-300.3678215,0.00045894,30]
[393995500,1763169047186,-164.2237678,0.00045894,30]
[393995501,1763169047195,-593.4565077,0.00045894,30]
[393995502,1763169047206,-164.2237678,0.00045894,30]
[393995503,1763169047217,-191.2434578,0.00045894,30]
[393995504,1763169047226,-593.4565077,0.00045894,30]
[393995505,1763169047236,-300.3678215,0.00045894,30]
[393995506,1763169047245,-593.4565077,0.00045894,30]
[393995507,1763169047255,-300.3678215,0.00045894,30]
[393995508,1763169047387,-164.2237678,0.00045894,30]
[393995509,1763169047414,-191.2434578,0.00045894,30]
[393995510,1763169047423,-164.2237678,0.00045894,30]
[393995511,1763169047432,-593.4565077,0.00045894,30]
[393995512,1763169047442,-164.2237678,0.00045894,30]
[393995513,1763169047451,-593.4565077,0.00045894,30]
[393995514,1763169047460,-164.2237678,0.00045894,30]
[393995515,1763169047470,-593.4565077,0.00045894,30]
[393995516,1763169047479,-191.2434578,0.00045894,30]
[393995517,1763169047488,-172.39,0.00045994,120]
[393995518,1763169047499,-500.0,0.00046,120]
[393995519,1763169047508,-1000.0,0.00046,120]
[393995520,1763169047517,-400.38245665,0.00046,30]
[393995521,1763169047527,-172.41225788,0.00046094,120]
[393995522,1763169047537,-453.738808,0.00046143,2]
[393995523,1763169047546,-333.941597,0.00046188,2]
[393995524,1763169047555,-157.48545082,0.00046377,2]
[393995525,1763169047564,-464.87965916,0.00046377,2]
[393995526,1763169047573,-151.0,0.00046442,120]
[393995527,1763169047583,-151.0,0.00046442,120]
[393995528,1763169047591,-151.0,0.00046442,120]
[393995529,1763169047601,-151.0,0.00046442,120]
[393995530,1763169047610,-151.0,0.00046442,120]
[393995531,1763169047620,-152.548768,0.00046442,120]
[393995532,1763169047630,-151.0,0.00046442,15]
[393995533,1763169047639,-151.0,0.00046442,120]
[393995534,1763169047647,-151.0,0.00046442,120]
[393995535,1763169047656,-151.0,0.00046442,120]
[393995536,1763169047666,-151.0,0.00046442,120]
[393995537,1763169047675,-151.0,0.00046442,120]
[393995538,1763169047684,-151.0,0.00046442,120]
[393995539,1763169047693,-151.0,0.00046442,120]
[393995540,1763169047706,-486.910272,0.00046442,2]
[393995541,1763169047716,-486.910272,0.00046442,2]
[393995542,1763169047725,-486.910272,0.00046442,2]
[393995543,1763169047734,-486.910272,0.00046442,2]
[393995544,1763169047743,-151.0,0.00046442,120]
[393995545,1763169047752,-151.0,0.00046442,120]
[393995546,1763169047761,-197.911652,0.00046442,120]
[393995547,1763169047770,-267.271984,0.00046442,120]
[393995548,1763169047781,-455.418,0.00046442,120]
[393995549,1763169047790,-455.418,0.00046442,120]
[393995550,1763169047800,-455.418,0.00046442,120]
[393995551,1763169047809,-455.418,0.00046442,120]
[393995552,1763169047818,-227.04697,0.00046442,120]
[393995553,1763169047827,-172.405905,0.00046442,120]
[393995554,1763169047836,-172.405905,0.00046442,120]
[393995555,1763169047845,-172.405905,0.00046442,120]
[393995556,1763169047855,-172.405905,0.00046442,120]
[393995557,1763169047865,-357.151608,0.00046442,120]
[393995558,1763169047874,-357.151608,0.00046442,120]
[393995559,1763169047883,-357.151608,0.00046442,120]
[393995560,1763169047892,-357.151608,0.00046442,120]
[393995561,1763169047901,-196.781899,0.00046442,120]
[393995562,1763169047910,-196.781899,0.00046442,120]
[393995563,1763169047919,-196.781899,0.00046442,120]
[393995564,1763169047928,-196.781899,0.00046442,120]
[393995565,1763169047938,-151.0,0.00046442,120]
[393995566,1763169047947,-355.35191,0.00046442,120]
[393995567,1763169047955,-355.35191,0.00046442,120]
[393995568,1763169047964,-355.35191,0.00046442,120]
[393995569,1763169047973,-355.35191,0.00046442,120]
[393995570,1763169047982,-151.0,0.00046442,120]
[393995571,1763169047993,-151.0,0.00046442,120]
[393995572,1763169048002,-151.0,0.00046442,120]
[393995573,1763169048011,-151.0,0.00046442,120]
[393995574,1763169048021,-250.831168,0.00046442,120]
[393995575,1763169048031,-187.765429,0.00046442,7]
[393995576,1763169048040,-187.765429,0.00046442,7]
[393995577,1763169048049,-187.765429,0.00046442,7]
[393995578,1763169048058,-187.765429,0.00046442,7]
[393995579,1763169048068,-151.0,0.00046442,120]
[393995580,1763169048078,-151.0,0.00046442,2]
[393995581,1763169048087,-151.0,0.00046442,120]
[393995582,1763169048096,-151.0,0.00046442,120]
[393995583,1763169048106,-151.0,0.00046442,120]
[393995584,1763169048116,-151.0,0.00046442,120]
[393995585,1763169048125,-151.0,0.00046442,120]
[393995586,1763169048135,-531.375781,0.00046442,120]
[393995587,1763169048144,-531.375781,0.00046442,120]
[393995588,1763169048154,-151.0,0.00046442,120]
[393995589,1763169048163,-531.375781,0.00046442,120]
[393995590,1763169048172,-469.977544,0.00046442,120]
[393995591,1763169048181,-151.0,0.00046442,120]
[393995592,1763169048190,-469.977544,0.00046442,120]
[393995593,1763169048200,-531.375781,0.00046442,120]
[393995594,1763169048212,-151.0,0.00046442,120]
[393995595,1763169048221,-469.977544,0.00046442,120]
[393995596,1763169048231,-469.977544,0.00046442,120]
[393995597,1763169048241,-151.0,0.00046442,120]
[393995598,1763169048251,-2868.729598,0.00046442,120]
[393995599,1763169048261,-2868.729598,0.00046442,120]
[393995600,1763169048271,-151.0,0.00046442,120]
[393995601,1763169048280,-2868.729598,0.00046442,120]
[393995602,1763169048291,-151.0,0.00046442,120]
[393995603,1763169048300,-2868.729598,0.00046442,120]
[393995604,1763169048310,-151.0,0.00046442,120]
[393995605,1763169048320,-159.719671,0.00046442,120]
[393995606,1763169048330,-235.0,0.00046466,60]
[393995607,1763169048340,-500.0,0.000465,120]
[393995608,1763169048349,-2148.0,0.00046542,2]
[393995609,1763169048358,-629.0,0.00046542,2]
[393995610,1763169048367,-987.0,0.00046542,2]
[393995611,1763169048376,-151.0,0.00046542,120]
[393995612,1763169048385,-1253.127483,0.00046542,120]
[393995613,1763169048395,-151.0,0.00046542,120]
[393995614,1763169048403,-1253.127483,0.00046542,120]
[393995615,1763169048413,-999.0,0.00046575,120]
[393995616,1763169048422,-726.97588,0.00046575,120]
[393995617,1763169048431,-726.97588,0.00046575,120]
[393995618,1763169048440,-726.97588,0.00046575,120]
[393995619,1763169048449,-726.97588,0.00046575,120]
[393995620,1763169048458,-726.97588,0.00046575,120]
[393995621,1763169048467,-726.97588,0.00046575,120]
[393995622,1763169048476,-726.97588,0.00046575,120]
[393995623,1763169048485,-726.97588,0.00046575,120]
[393995624,1763169048494,-726.97588,0.00046575,120]
[393995625,1763169048503,-726.97588,0.00046575,120]
[393995626,1763169048512,-726.97588,0.00046575,120]
[393995627,1763169048520,-726.97588,0.00046575,120]
[393995628,1763169048531,-412.87729756,0.00046639,2]
[393995629,1763169048541,-739.16117296,0.00046639,2]
[393995630,1763169048550,-1461.61822472,0.00046639,2]
[393995631,1763169048559,-649.04322092,0.00046639,2]
[393995632,1763169048567,-593.4565077,0.00046716,30]
[393995633,1763169048576,-593.4565077,0.00046716,30]
[393995634,1763169048585,-593.4565077,0.00046716,30]
[393995635,1763169048594,-593.4565077,0.00046716,30]
[393995636,1763169048603,-593.4565077,0.00046716,30]
[393995637,1763169048612,-164.2237678,0.00046716,30]
[393995638,1763169048621,-191.2434578,0.00046716,30]
[393995639,1763169048630,-191.2434578,0.00046716,30]
[393995640,1763169048639,-191.2434578,0.00046716,30]
[393995641,1763169048648,-191.2434578,0.00046716,30]
[393995642,1763169048657,-191.2434578,0.00046716,30]
[393995643,1763169048666,-390.62,0.00046849,16]
[393995644,1763169048675,-333.941597,0.00046923,120]
[393995645,1763169048684,-474.0,0.00046942,120]
[393995646,1763169048692,-500.0,0.00047,120]
[393995647,1763169048701,-500.0,0.000475,120]
[393995648,1763169048709,-500.0,0.00048,120]
[393995649,1763169048718,-151.0,0.00048,120]
[393995650,1763169048727,-300.0,0.0004811,90]
[393995651,1763169048737,-390.62,0.00048219,17]
[393995652,1763169048745,-158.669288,0.00048497,120]
[393995653,1763169048754,-333.941597,0.00048497,120]
[393995654,1763169048763,-500.0,0.000485,120]
[393995655,1763169048771,-333.941597,0.00048522,10]
[393995656,1763169048781,-403.35763022,0.00048818,2]
[393995657,1763169048790,-501.0,0.00048942,120]
[393995658,1763169048798,-500.0,0.00049,120]
[393995659,1763169048807,-159.0,0.00049,120]
[393995660,1763169048816,-1000.0,0.00049,120]
[393995661,1763169048825,-635.08550234,0.00049315,120]
[393995662,1763169048835,-500.0,0.000495,120]
[393995663,1763169048843,-2148.0,0.00049542,2]
[393995664,1763169048852,-629.0,0.00049542,2]
[393995665,1763169048860,-987.0,0.00049542,2]
[393995666,1763169048869,-390.62,0.00049589,18]
[393995667,1763169048878,-100000.0,0.0005,30]
[393995668,1763169048887,-500.0,0.0005,120]
[393995669,1763169048896,-32957.81,0.0005,120]
[393995670,1763169048905,-1000.0,0.0005,120]
[393995671,1763169048913,-151.0,0.0005,120]
[393995672,1763169048922,-151.0,0.0005,120]
[393995673,1763169048931,-151.0,0.0005,120]
[393995674,1763169048940,-151.0,0.0005,120]
[393995675,1763169048948,-151.0,0.0005,120]
[393995676,1763169048957,-502.26141912,0.0005,2]
[393995677,1763169048967,-151.0,0.0005,15]
[393995678,1763169048976,-151.0,0.0005,120]
[393995679,1763169048985,-151.0,0.0005,120]
[393995680,1763169048994,-151.0,0.0005,120]
[393995681,1763169049004,-151.0,0.0005,120]
[393995682,1763169049013,-151.0,0.0005,120]
[393995683,1763169049022,-151.0,0.0005,120]
[393995684,1763169049033,-151.0,0.0005,120]
[393995685,1763169049042,-486.910272,0.0005,2]
[393995686,1763169049051,-486.910272,0.0005,2]
[393995687,1763169049060,-486.910272,0.0005,2]
[393995688,1763169049070,-486.910272,0.0005,2]
[393995689,1763169049079,-151.0,0.0005,120]
[393995690,1763169049088,-151.0,0.0005,120]
[393995691,1763169049098,-455.418,0.0005,120]
[393995692,1763169049107,-455.418,0.0005,120]
[393995693,1763169049115,-455.418,0.0005,120]
[393995694,1763169049125,-455.418,0.0005,120]
[393995695,1763169049134,-172.405905,0.0005,120]
[393995696,1763169049143,-172.405905,0.0005,120]
[393995697,1763169049152,-172.405905,0.0005,120]
[393995698,1763169049161,-172.405905,0.0005,120]
[393995699,1763169049170,-357.151608,0.0005,120]
[393995700,1763169049180,-357.151608,0.0005,120]
[393995701,1763169049190,-357.151608,0.0005,120]
[393995702,1763169049199,-357.151608,0.0005,120]
[393995703,1763169049210,-196.781899,0.0005,120]
[393995704,1763169049220,-196.781899,0.0005,120]
[393995705,1763169049230,-196.781899,0.0005,120]
[393995706,1763169049238,-196.781899,0.0005,120]
[393995707,1763169049247,-355.35191,0.0005,120]
[393995708,1763169049258,-355.35191,0.0005,120]
[393995709,1763169049268,-355.35191,0.0005,120]
[393995710,1763169049277,-355.35191,0.0005,120]
[393995711,1763169049288,-151.0,0.0005,120]
[393995712,1763169049297,-151.0,0.0005,120]
[393995713,1763169049306,-151.0,0.0005,120]
[393995714,1763169049315,-151.0,0.0005,120]
[393995715,1763169049324,-187.765429,0.0005,7]
[393995716,1763169049334,-187.765429,0.0005,7]
[393995717,1763169049343,-187.765429,0.0005,7]
[393995718,1763169049352,-187.765429,0.0005,7]
[393995719,1763169049362,-151.0,0.0005,120]
[393995720,1763169049371,-151.0,0.0005,2]
[393995721,1763169049380,-151.0,0.0005,120]
[393995722,1763169049389,-151.0,0.0005,120]
[393995723,1763169049398,-151.0,0.0005,120]
[393995724,1763169049407,-151.0,0.0005,120]
[393995725,1763169049416,-151.0,0.0005,120]
[393995726,1763169049426,-726.97588,0.0005,120]
[393995727,1763169049435,-531.375781,0.0005,120]
[393995728,1763169049444,-726.97588,0.0005,120]
[393995729,1763169049453,-531.375781,0.0005,120]
[393995730,1763169049463,-151.0,0.0005,120]
[393995731,1763169049471,-726.97588,0.0005,120]
[393995732,1763169049481,-531.375781,0.0005,120]
[393995733,1763169049491,-469.977544,0.0005,120]
[393995734,1763169049500,-726.97588,0.0005,120]
[393995735,1763169049509,-469.977544,0.0005,120]
[393995736,1763169049518,-531.375781,0.0005,120]
[393995737,1763169049528,-277.276147,0.0005,120]
[393995738,1763169049536,-469.977544,0.0005,120]
[393995739,1763169049546,-469.977544,0.0005,120]
[393995740,1763169049556,-151.0,0.0005,120]
[393995741,1763169049565,-2868.729598,0.0005,120]
[393995742,1763169049575,-2868.729598,0.0005,120]
[393995743,1763169049584,-151.0,0.0005,120]
[393995744,1763169049594,-2868.729598,0.0005,120]
[393995745,1763169049603,-2868.729598,0.0005,120]
[393995746,1763169049612,-151.0,0.0005,120]
[393995747,1763169049621,-367.1630007,0.0005,30]
[393995748,1763169049631,-1253.127483,0.0005,120]
[393995749,1763169049640,-151.0,0.0005,120]
[393995750,1763169049649,-1253.127483,0.0005,120]
[393995751,1763169049658,-500.0,0.000505,120]
[393995752,1763169049668,-500.0,0.00050692,120]
[393995753,1763169049677,-528.0,0.00050942,120]
[393995754,1763169049687,-390.62,0.00050958,19]
[393995755,1763169049696,-500.0,0.00051,120]
[393995756,1763169049706,-2790.388389,0.00051,85]
[393995757,1763169049715,-193.99972284,0.00051387,4]
[393995758,1763169049724,-195.2362931,0.00051387,4]
[393995759,1763169049733,-775.22289245,0.00051387,4]
[393995760,1763169049743,-242.69117185,0.00051387,4]
[393995761,1763169049751,-780.16422722,0.00051387,4]
[393995762,1763169049760,-324.2057951,0.00051387,4]
[393995763,1763169049770,-500.0,0.000515,120]
[393995764,1763169049781,-400.0,0.00051945,120]
[393995765,1763169049790,-500.0,0.00052,120]
[393995766,1763169049799,-1000.0,0.00052,120]
[393995767,1763169049808,-500.0,0.00052054,120]
[393995768,1763169049818,-500.0,0.00052054,120]
[393995769,1763169049827,-500.0,0.00052054,120]
[393995770,1763169049836,-500.0,0.00052054,120]
[393995771,1763169049845,-226.26504127,0.00052054,120]
[393995772,1763169049854,-500.0,0.00052054,120]
[393995773,1763169049863,-500.0,0.00052054,120]
[393995774,1763169049872,-500.0,0.00052054,120]
[393995775,1763169049882,-500.0,0.00052054,120]
[393995776,1763169049891,-655.84,0.00052054,120]
[393995777,1763169049900,-500.0,0.00052054,120]
[393995778,1763169049910,-500.0,0.00052054,120]
[393995779,1763169049919,-500.0,0.00052054,120]
[393995780,1763169049929,-500.0,0.00052054,120]
[393995781,1763169049939,-500.0,0.00052054,120]
[393995782,1763169049949,-500.0,0.00052054,120]
[393995783,1763169049958,-500.0,0.00052054,120]
[393995784,1763169049967,-500.0,0.00052054,120]
[393995785,1763169049976,-3399.99,0.00052054,2]
[393995786,1763169049985,-646.33,0.00052054,120]
[393995787,1763169049994,-500.0,0.00052054,120]
[393995788,1763169050004,-500.0,0.00052054,120]
[393995789,1763169050013,-500.0,0.00052054,120]
[393995790,1763169050022,-240.57085711,0.00052054,120]
[393995791,1763169050031,-500.0,0.00052054,120]
[393995792,1763169050040,-565.13,0.00052054,120]
[393995793,1763169050049,-500.0,0.00052054,120]
[393995794,1763169050058,-500.0,0.00052054,120]
[393995795,1763169050067,-756.52,0.00052054,120]
[393995796,1763169050076,-500.0,0.00052054,120]
[393995797,1763169050085,-500.0,0.00052054,120]
[393995798,1763169050094,-500.0,0.00052054,120]
[393995799,1763169050103,-579.52,0.00052054,120]
[393995800,1763169050112,-1173.83,0.00052054,120]
[393995801,1763169050121,-500.0,0.00052054,120]
[393995802,1763169050130,-618.21,0.00052054,120]
[393995803,1763169050139,-500.0,0.00052054,120]
[393995804,1763169050149,-500.0,0.00052054,120]
[393995805,1763169050158,-500.0,0.00052054,120]
[393995806,1763169050168,-500.0,0.00052054,120]
[393995807,1763169050177,-551.26,0.00052054,120]
[393995808,1763169050186,-500.0,0.00052054,120]
[393995809,1763169050196,-500.0,0.00052054,120]
[393995810,1763169050337,-500.0,0.00052054,120]
[393995811,1763169050346,-500.0,0.00052054,120]
[393995812,1763169050355,-500.0,0.00052054,120]
[393995813,1763169050364,-500.0,0.00052054,120]
[393995814,1763169050373,-500.0,0.00052054,120]
[393995815,1763169050382,-500.0,0.00052054,120]
[393995816,1763169050391,-500.0,0.00052054,120]
[393995817,1763169050401,-828.96,0.00052054,120]
[393995818,1763169050410,-454.62056366,0.00052054,120]
[393995819,1763169050419,-500.0,0.00052054,120]
[393995820,1763169050428,-293.74773452,0.00052054,120]
[393995821,1763169050437,-500.0,0.00052054,120]
[393995822,1763169050445,-500.0,0.00052054,120]
[393995823,1763169050454,-500.0,0.00052054,120]
[393995824,1763169050463,-500.0,0.00052054,120]
[393995825,1763169050472,-500.0,0.00052054,120]
[393995826,1763169050481,-505.79,0.00052054,120]
[393995827,1763169050490,-784.8,0.00052054,120]
[393995828,1763169050499,-500.0,0.00052054,120]
[393995829,1763169050507,-500.0,0.00052054,120]
[393995830,1763169050516,-500.0,0.00052054,120]
[393995831,1763169050525,-500.0,0.00052054,120]
[393995832,1763169050535,-872.98,0.00052054,120]
[393995833,1763169050543,-500.0,0.00052054,120]
[393995834,1763169050552,-500.0,0.00052054,120]
[393995835,1763169050561,-500.0,0.00052054,120]
[393995836,1763169050570,-458.93935825,0.00052054,120]
[393995837,1763169050579,-505.1,0.00052054,120]
[393995838,1763169050588,-500.0,0.00052054,120]
[393995839,1763169050598,-500.0,0.00052054,120]
[393995840,1763169050607,-500.0,0.00052054,120]
[393995841,1763169050616,-812.25,0.00052054,2]
[393995842,1763169050625,-500.0,0.00052054,120]
[393995843,1763169050634,-500.0,0.00052054,120]
[393995844,1763169050643,-500.0,0.00052054,120]
[393995845,1763169050652,-709.47,0.00052054,2]
[393995846,1763169050661,-500.0,0.00052054,120]
[393995847,1763169050670,-500.0,0.00052054,120]
[393995848,1763169050679,-500.0,0.00052054,120]
[393995849,1763169050689,-500.0,0.00052054,120]
[393995850,1763169050699,-219.6449877,0.00052054,120]
[393995851,1763169050708,-500.0,0.00052054,120]
[393995852,1763169050717,-500.0,0.00052054,120]
[393995853,1763169050726,-500.0,0.00052054,120]
[393995854,1763169050734,-1011.37,0.00052054,120]
[393995855,1763169050743,-500.0,0.00052054,120]
[393995856,1763169050753,-600.08904264,0.00052054,120]
[393995857,1763169050762,-500.0,0.00052054,120]
[393995858,1763169050771,-500.0,0.00052054,120]
[393995859,1763169050781,-500.0,0.00052054,120]
[393995860,1763169050790,-500.0,0.00052054,120]
[393995861,1763169050799,-603.11,0.00052054,120]
[393995862,1763169050808,-500.0,0.00052054,120]
[393995863,1763169050817,-500.0,0.00052054,120]
[393995864,1763169050826,-500.0,0.00052054,120]
[393995865,1763169050834,-500.0,0.00052054,120]
[393995866,1763169050843,-500.0,0.00052054,120]
[393995867,1763169050852,-500.0,0.00052054,120]
[393995868,1763169050861,-562.64,0.00052054,120]
[393995869,1763169050870,-500.0,0.00052054,120]
[393995870,1763169050878,-500.0,0.00052054,120]
[393995871,1763169050887,-500.0,0.00052054,120]
[393995872,1763169050896,-500.0,0.00052054,120]
[393995873,1763169050905,-500.0,0.00052054,120]
[393995874,1763169050914,-500.0,0.00052054,120]
[393995875,1763169050922,-500.0,0.00052054,120]
[393995876,1763169050931,-500.0,0.00052054,120]
[393995877,1763169050940,-500.0,0.00052054,120]
[393995878,1763169050949,-500.0,0.00052054,120]
[393995879,1763169050957,-500.0,0.00052054,120]
[393995880,1763169050966,-245.38132618,0.00052054,120]
[393995881,1763169050975,-500.0,0.00052054,120]
[393995882,1763169050984,-500.0,0.00052054,120]
[393995883,1763169050993,-500.0,0.00052054,120]
[393995884,1763169051002,-500.0,0.00052054,120]
[393995885,1763169051011,-500.0,0.00052054,120]
[393995886,1763169051020,-535.15202116,0.00052054,120]
[393995887,1763169051029,-500.0,0.00052054,120]
[393995888,1763169051038,-500.0,0.00052054,120]
[393995889,1763169051046,-500.0,0.00052054,7]
[393995890,1763169051055,-500.0,0.00052054,120]
[393995891,1763169051063,-500.0,0.00052054,120]
[393995892,1763169051072,-500.0,0.00052054,120]
[393995893,1763169051081,-500.0,0.00052054,120]
[393995894,1763169051090,-500.0,0.00052054,120]
[393995895,1763169051098,-500.0,0.00052054,120]
[393995896,1763169051108,-500.0,0.00052054,120]
[393995897,1763169051117,-500.0,0.00052054,120]
[393995898,1763169051126,-546.33,0.00052054,120]
[393995899,1763169051135,-1119.68,0.00052054,120]
[393995900,1763169051143,-500.0,0.00052054,120]
[393995901,1763169051152,-500.0,0.00052054,120]
[393995902,1763169051162,-500.0,0.00052054,120]
[393995903,1763169051171,-500.0,0.00052054,120]
[393995904,1763169051181,-864.57,0.00052054,120]
[393995905,1763169051190,-500.0,0.00052054,120]
[393995906,1763169051199,-500.0,0.00052054,120]
[393995907,1763169051210,-500.0,0.00052054,120]
[393995908,1763169051220,-500.0,0.00052054,120]
[393995909,1763169051229,-500.0,0.00052054,120]
[393995910,1763169051238,-500.0,0.00052054,120]
[393995911,1763169051247,-1258.34,0.00052054,120]
[393995912,1763169051257,-500.0,0.00052054,120]
[393995913,1763169051267,-500.0,0.00052054,120]
[393995914,1763169051277,-500.0,0.00052054,120]
[393995915,1763169051288,-500.0,0.00052054,120]
[393995916,1763169051298,-500.0,0.00052054,120]
[393995917,1763169051310,-500.0,0.00052054,120]
[393995918,1763169051320,-500.0,0.00052054,120]
[393995919,1763169051329,-500.0,0.00052054,120]
[393995920,1763169051338,-500.0,0.00052054,100]
[393995921,1763169051347,-500.0,0.00052054,120]
[393995922,1763169051356,-500.0,0.00052054,120]
[393995923,1763169051365,-500.0,0.00052054,120]
[393995924,1763169051373,-500.0,0.00052054,120]
[393995925,1763169051382,-500.0,0.00052054,120]
[393995926,1763169051391,-955.22,0.00052054,120]
[393995927,1763169051401,-500.0,0.00052054,120]
[393995928,1763169051410,-500.0,0.00052054,120]
[393995929,1763169051420,-500.0,0.00052054,120]
[393995930,1763169051429,-500.0,0.00052054,120]
[393995931,1763169051438,-500.0,0.00052054,120]
[393995932,1763169051447,-500.0,0.00052054,120]
[393995933,1763169051456,-500.0,0.00052054,120]
[393995934,1763169051465,-500.0,0.00052054,120]
[393995935,1763169051474,-200.00000006,0.00052054,120]
[393995936,1763169051482,-500.0,0.00052054,120]
[393995937,1763169051491,-500.0,0.00052054,120]
[393995938,1763169051501,-386.10449814,0.00052054,120]
[393995939,1763169051510,-500.0,0.00052054,120]
[393995940,1763169051519,-500.0,0.00052054,120]
[393995941,1763169051528,-307.34186992,0.00052054,120]
[393995942,1763169051537,-500.0,0.00052054,120]
[393995943,1763169051546,-500.0,0.00052054,120]
[393995944,1763169051556,-500.0,0.00052054,120]
[393995945,1763169051565,-500.0,0.00052054,120]
[393995946,1763169051575,-500.0,0.00052054,120]
[393995947,1763169051585,-500.0,0.00052054,120]
[393995948,1763169051594,-500.0,0.00052054,120]
[393995949,1763169051603,-500.0,0.00052054,120]
[393995950,1763169051614,-500.0,0.00052054,120]
[393995951,1763169051623,-500.0,0.00052054,120]
[393995952,1763169051632,-500.0,0.00052054,120]
[393995953,1763169051642,-500.0,0.00052054,120]
[393995954,1763169051652,-500.0,0.00052054,120]
[393995955,1763169051662,-500.0,0.00052054,120]
[393995956,1763169051670,-500.0,0.00052054,120]
[393995957,1763169051679,-1000.0,0.00052054,2]
[393995958,1763169051689,-500.0,0.00052054,120]
[393995959,1763169051699,-500.0,0.00052054,120]
[393995960,1763169051709,-500.0,0.00052054,120]
[393995961,1763169051718,-514.2,0.00052054,120]
[393995962,1763169051728,-500.0,0.00052054,120]
[393995963,1763169051737,-500.0,0.00052054,120]
[393995964,1763169051746,-151.0,0.00052054,120]
[393995965,1763169051755,-386.09534047,0.00052054,120]
[393995966,1763169051765,-500.0,0.00052054,120]
[393995967,1763169051774,-500.0,0.00052054,120]
[393995968,1763169051783,-652.64,0.00052054,120]
[393995969,1763169051792,-500.0,0.00052054,120]
[393995970,1763169051802,-500.0,0.00052054,120]
[393995971,1763169051811,-500.0,0.00052054,120]
[393995972,1763169051820,-500.0,0.00052054,2]
[393995973,1763169051830,-500.0,0.00052054,120]
[393995974,1763169051839,-500.0,0.00052054,120]
[393995975,1763169051848,-500.0,0.00052054,120]
[393995976,1763169051857,-500.0,0.00052054,120]
[393995977,1763169051866,-500.0,0.00052054,120]
[393995978,1763169051875,-500.0,0.00052054,120]